Cogmind - Beta 16 @@@ ROGUE MODE // 2025.12.30 @ 02:23:48 Player: Legato Result: Destroyed by S-27 Virus with Autogun Performance ------------- Evolutions (5) 2500 Regions Visited (7) 1400 Robots Destroyed (61) 305 Value Destroyed (1886) 1886 Prototype IDs (2) 40 Alien Tech Used (0) 0 Bonus (0) 0 TOTAL SCORE: 6131 Bonus ------- None Cogmind --------- Core Integrity 0/1000 Matter 217/300 Energy 20/100 System Corruption 23% Temperature Cool (0) Movement Core (50) Location -5/Factory Parts ------- > --- POWER (1) -------- (None) > --- PROPULSION (5) --- (None) > --- UTILITY (9) ------ (None) > --- WEAPON (2) ------- (None) > --- INVENTORY (5) ---- Improved Deuterium Engine Improved Deuterium Engine Light Angular Momentum Engine Medium Treads Peak State ------------ > --- POWER ------------ Light Angular Momentum Engine > --- PROPULSION ------- Armored Medium Treads Carbon-fiber Leg Carbon-fiber Leg Flexi-carbon Leg Improved VSS Leg > --- UTILITY ---------- Small Storage Unit Enhanced Optical Array Improved Sensor Array Improved Melee Analysis Suite Improved Target Analyzer Actuator Array Improved Core Shielding Improved Light Armor Plating Advanced Shield Generator > --- WEAPON ----------- Axe > --- INVENTORY -------- Improved Deuterium Engine Improved Deuterium Engine Reinforced Deuterium Engine Light Angular Momentum Engine Improved VTOL Module Sensor Array Improved Medium Armor Plating Improved Shield Generator [Rating: 68] Favorites ----------- Power Deuterium Engine Engine Deuterium Engine Power Core Enhanced Nuclear Core Propulsion Improved Aluminum Leg Treads Armored Medium Treads Leg Improved Aluminum Leg Wheel Compact Wheel Flight Unit Improved VTOL Module Utility Actuator Array Device Actuator Array Storage Small Storage Unit Processor Advanced Visual Processing Unit Protection Improved Weapon Shielding Weapon Axe Energy Gun EM Shotgun Ballistic Gun Assault Rifle Ballistic Cannon Improved Light Cannon Launcher Missile Launcher Slashing Weapon Axe Special Melee Weapon Datajack Build | -11 -10 -10 -9 -8 -7 -6 -5 ------- Run | Yrd Mat Min Mat Mat Fac Fac Fac Slots Evolved 10 | . . . 2 2 2 2 2 Power . | . . . . . . . . Propulsion 3 | . . . 1 . 1 . 1 Utility 7 | . . . 1 2 1 2 1 Weapon . | . . . . . . . . Parts Attached 73 | 8 3 2 6 19 11 3 21 Power 9 | 1 . . 1 2 3 . 2 Engine 7 | 1 . . 1 1 2 . 2 Core 2 | . . . . 1 1 . . Reactor . | . . . . . . . . Propulsion 21 | 2 . . 4 3 4 . 8 Treads 1 | . . . . . . . 1 Leg 18 | 2 . . 4 3 3 . 6 Wheel 1 | . . . . . . . 1 Hover . | . . . . . . . . Flight 1 | . . . . . 1 . . Utility 30 | 3 . 1 . 9 4 3 10 Device 13 | 2 . . . 4 1 1 5 Storage 1 | 1 . . . . . . . Processor 6 | . . 1 . 2 . 1 2 Hackware . | . . . . . . . . Protection 10 | . . . . 3 3 1 3 Artifact . | . . . . . . . . Weapon 13 | 2 3 1 1 5 . . 1 Energy Gun 3 | 2 . . . 1 . . . Energy Cannon . | . . . . . . . . Ballistic Gun 3 | . 2 1 . . . . . Ballistic Cannon 1 | . . . . 1 . . . Launcher 2 | . . . 1 1 . . . Special Weapon . | . . . . . . . . Impact Weapon . | . . . . . . . . Slashing Weapon 2 | . . . . 2 . . . Piercing Weapon . | . . . . . . . . Special Melee Weapon 2 | . 1 . . . . . 1 Unidentified Prototypes 2 | . . . . . 2 . . Parts Lost 33 | . 1 . 1 3 1 1 26 Power 2 | . . . . . . . 2 Propulsion 12 | . . . . 1 1 . 10 Utility 13 | . . . . 1 . 1 11 Weapon 6 | . 1 . 1 1 . . 3 Highest Loss Streak 10 | . 1 . 1 1 1 1 10 To Critical Strikes 1 | . . . . . . . 1 Average Backups 6 | 3 6 4 3 8 7 6 6 Power 2 | . 1 1 1 2 3 4 3 Propulsion 1 | 1 2 1 1 2 1 1 . Utility 2 | . 1 2 1 2 2 1 2 Weapon . | . 1 . . . . . . Tool/Special . | . . . . . . . . Unused Backups 11 | . . 1 . 2 3 . 5 Power 5 | . . . . 1 1 . 3 Propulsion 4 | . . 1 . 1 1 . 1 Utility 2 | . . . . . 1 . 1 Weapon . | . . . . . . . . Tool/Special . | . . . . . . . . Average Slot Usage (%) 92 | . 97 100 96 98 99 97 81 Engine 6 | . 14 14 11 8 3 . 3 Core 1 | . . . . . 3 6 . Leg 23 | . 28 28 29 26 29 26 15 Device 16 | . 13 14 11 15 15 22 17 Storage 7 | . 14 4 10 9 7 6 4 Processor 9 | . . 9 11 13 7 10 11 Protection 8 | . . . . 5 14 10 10 Ballistic Gun 5 | . 17 28 20 6 . . . Slashing Weapon 7 | . . . . 3 14 13 8 Peak Build Rating 68 | 9 8 9 15 27 40 48 68 Average Rating 32 | 6 7 7 10 23 34 42 50 On Entrance 18 | . 7 7 8 15 26 38 48 Avg Prop Armor Cover (%) 11 | . . . . . . . 11 Naked Turns 23 | . . . . . . . 23 Heaviest Build 49 | 12 13 13 17 31 36 38 49 Greatest Support 74 | 20 20 20 39 43 60 58 74 Greatest Overweight (x) 2 | . . . . . . . 2 Average Overweight (x) . | . . . . . . . . Largest Inventory Capacity 8 | 8 8 8 8 8 8 8 8 Average Capacity 7 | 7 8 5 7 8 8 8 7 Most Carried 8 | 5 7 6 8 8 8 8 8 Average Carried 6 | 3 6 4 3 7 7 6 6 Final Capacity 8 | 8 8 5 8 8 8 8 5 Final Carried 8 | 5 6 4 8 8 8 7 4 Class Distribution -------------------- 51% | Gladiator 43% | Mutant 4% | Scavenger-Mutant Dominant Class ---------------- Mutant | -10/Materials Mutant | -10/Mines Mutant | -9/Materials Mutant | -8/Materials Gladiator | -7/Factory Gladiator | -6/Factory Gladiator | -5/Factory Resources | -11 -10 -10 -9 -8 -7 -6 -5 ----------- Run | Yrd Mat Min Mat Mat Fac Fac Fac Matter Collected 1278 | 264 36 63 188 263 217 77 170 Remotely . | . . . . . . . . Salvage Created 2150 | 158 143 162 140 634 258 83 572 Parts 136 | 14 8 9 8 44 21 5 27 Haulers Intercepted 1 | . . . . 1 . . . Recyclers Shooed 5 | 1 1 2 . . 1 . . Parts Field Recycled . | . . . . . . . . Retrieved Matter . | . . . . . . . . Parts Self-Destructed . | . . . . . . . . Prevented . | . . . . . . . . Parts Restored . | . . . . . . . . Kills | -11 -10 -10 -9 -8 -7 -6 -5 ------- Run | Yrd Mat Min Mat Mat Fac Fac Fac Combat Hostiles Destroyed 44 | . 1 3 3 15 8 3 11 Melee 25 | . . . . 4 7 3 11 Guns 12 | . 1 3 2 6 . . . AOE 7 | . . . 1 5 1 . . Classes Destroyed 14 | 2 2 2 1 3 2 . 2 Worker 2 | . . 1 . 1 . . . Builder 2 | . . . . 2 . . . Tunneler 3 | 3 . . . . . . . Hauler 1 | . . . . 1 . . . Recycler 5 | 1 1 1 . 2 . . . Watcher 4 | . 2 . . 1 . . 1 Swarmer 22 | . . 3 . 7 5 3 4 Grunt 6 | . 1 . . 4 . . 1 Brawler 1 | . . . . . . . 1 Duelist 1 | . . . . 1 . . . Sentry 7 | . . . 3 3 1 . . Hunter 3 | . . . . . 1 . 2 Programmer 3 | . . . . . 1 . 2 Behemoth 1 | . . . . . . . 1 Best Kill Streak 16 | 2 3 4 1 16 4 3 4 Combat Bots Only 9 | . 1 3 1 9 4 3 4 Max Kills in Single Turn 5 | 1 1 1 1 5 2 2 1 Gunslinging . | . . . . . . . . Exploded 2 | . . . 1 2 1 . . Melee 2 | . . . . 1 2 2 1 Uniques/NPCs Destroyed . | . . . . . . . . Combat | -11 -10 -10 -9 -8 -7 -6 -5 -------- Run | Yrd Mat Min Mat Mat Fac Fac Fac Hostile Shots Fired 493 | . 10 17 34 54 77 16 285 Missed 133 | . 5 5 10 8 25 6 74 Hits 360 | . 5 12 24 46 52 10 211 Melee 8 | . . . . . . . 8 Projectile 352 | . 5 12 24 46 52 10 203 AOE 4 | . . . . . 1 . 3 Critical Strikes 11 | . . . 2 1 . 1 7 Actively Blocked 1 | . . . . . . . 1 Part Disruptions 1 | . . . . . . . 1 Damage Taken 6067 | . 55 98 361 700 713 154 3986 Core 1287 | . 12 16 74 49 80 47 1009 Absorbed by Shields 102 | . . . . . . . 102 Redirected to Shielding 142 | . . . . 9 13 . 120 Core Remaining (%) 90 | 100 . 88 81 91 88 94 . Volleys Fired 71 | 12 8 10 19 22 . . . Largest 2 | 2 2 2 2 2 . . . Hottest 81 | 80 40 40 50 81 . . . Shots Fired 127 | 24 15 20 32 36 . . . Gun 118 | 24 15 20 30 29 . . . Cannon 1 | . . . . 1 . . . Launcher 8 | . . . 2 6 . . . Special . | . . . . . . . . Kinetic 80 | . 15 20 30 15 . . . Thermal 12 | 12 . . . . . . . Explosive 8 | . . . 2 6 . . . Electromagnetic 27 | 12 . . . 15 . . . Robot Hit Streak 8 | 4 7 2 5 8 . . . Robot Miss Streak 7 | 6 1 4 7 4 . . . Penetration Max . | . . . . . . . . Secondary Targets . | . . . . . . . . Shots Hit Robots 158 | 10 14 8 18 38 14 5 51 Core Hits 92 | 5 6 6 8 34 8 3 22 Critical Kills . | . . . . . . . . Critical Parts Destroyed . | . . . . . . . . Critical Strikes 10 | . . . . 1 1 . 8 Sever 10 | . . . . 1 1 . 8 Melee Attacks 179 | . 5 . . 17 50 13 94 Impact . | . . . . . . . . Slashing 172 | . . . . 17 50 13 92 Piercing . | . . . . . . . . Sneak Attacks 8 | . 3 . . 1 2 . 2 Combat Hostiles . | . . . . . . . . Follow-up Attacks 18 | . . . . 1 4 2 11 Damage Inflicted 5017 | 154 127 107 352 1701 613 176 1787 Guns 887 | 154 127 102 201 303 . . . Cannons . | . . . . . . . . Explosions 1106 | . . . 146 960 . . . Melee 2962 | . . . . 438 613 176 1735 Ramming 62 | . . 5 5 . . . 52 Kinetic 567 | . 127 102 201 137 . . . Thermal 56 | 56 . . . . . . . Explosive 1106 | . . . 146 960 . . . Electromagnetic 264 | 98 . . . 166 . . . Impact . | . . . . . . . . Slashing 2962 | . . . . 438 613 176 1735 Piercing . | . . . . . . . . Highest Corruption 23 | . . . . . 1 . 23 Average Corruption 19 | . . . . . 1 . 19 Corruption Purged . | . . . . . . . . Corruption Blocked . | . . . . . . . . Effects 30 | . . . . . . . 30 Message Errors 8 | . . . . . . . 8 Matter Fused 9 | . . . . . . . 9 Energy Discharges 3 | . . . . . . . 3 Data Loss (minor) 3 | . . . . . . . 3 Data Loss (major) 2 | . . . . . . . 2 Alerts 1 | . . . . . . . 1 Misdirections 4 | . . . . . . . 4 Overload Shots . | . . . . . . . . Overflow Damage 302 | . . . . 91 128 11 72 Projectiles . | . . . . . . . . Explosions 42 | . . . . 42 . . . Melee 260 | . . . . 49 128 11 72 Knockbacks 1 | . . 1 . . . . . Impact 1 | . . 1 . . . . . Kinetic . | . . . . . . . . Secondary . | . . . . . . . . Self-Inflicted Damage 194 | . . . . 173 . . 21 Shots 5 | . . . . 5 . . . Rammed 11 | . . . . . . . 11 Targets Rammed 16 | . . 2 1 . . . 13 Kicked 5 | . . 2 1 . . . 2 Crushed . | . . . . . . . . Highest Temperature 60 | 54 . . 17 60 6 . 1 Average Temperature 22 | 23 . . 6 23 6 . 1 Received Heat Transfer 1007 | . 30 . 141 180 78 . 578 Siege Activations . | . . . . . . . . Martial Activations . | . . . . . . . . Shielding Activations . | . . . . . . . . Robots Disrupted . | . . . . . . . . Combat Hostiles . | . . . . . . . . Robots Corrupted . | . . . . . . . . Combat Hostiles . | . . . . . . . . Parts Fried 1 | . . . . 1 . . . Impact Corruptions . | . . . . . . . . Robots Melted . | . . . . . . . . Combat Hostiles . | . . . . . . . . Parts Melted . | . . . . . . . . Heat Transferred 125 | 125 . . . . . . . Parts Sabotaged . | . . . . . . . . Parts Stolen . | . . . . . . . . Parts Stripped . | . . . . . . . . Power Chain Reactions 1 | . . . . 1 . . . Alert | -11 -10 -10 -9 -8 -7 -6 -5 ------- Run | Yrd Mat Min Mat Mat Fac Fac Fac Maximum Alert Level 1 | . . . . 1 . . . Low Security (%) 91 | 100 100 100 100 51 100 100 100 Level 1 8 | . . . . 48 . . . Level 2 . | . . . . . . . . Level 3 . | . . . . . . . . Level 4 . | . . . . . . . . Level 5 . | . . . . . . . . High Security . | . . . . . . . . Max Security . | . . . . . . . . Peak Influence 281 | 10 32 60 60 281 121 75 70 Initial 120 | . 3 . . 3 120 30 10 Average 44 | 1 4 31 14 125 66 34 16 Influence Increases 1689 | 20 44 80 145 487 279 104 530 Destroy 0b10 Robot/C 880 | . 20 60 60 300 160 60 220 Destroy 0b10 Robot/NC 85 | 20 15 10 . 35 . . 5 Destroy Leader 220 | . 4 10 30 74 40 10 52 Allied During Kill 3 | . . . 3 . . . . Successful Hack 34 | . 5 . 10 . 7 . 12 Disable Machine 225 | . . . 30 30 60 30 75 Destroy Structure 122 | . . . 12 48 12 4 46 Lose Combat Pursuer 120 | . . . . . . . 120 Influence Decreases 1631 | 15 49 80 135 232 482 144 494 Entered New Map 198 | . 2 . . 7 145 32 12 Time Decay 1183 | 15 47 80 91 195 327 102 326 Lost Part 216 | . . . 10 30 10 10 156 Lost Ally 34 | . . . 34 . . . . Squads Dispatched 9 | . . . . 1 2 . 6 Investigation 2 | . . . . . . . 2 Extermination 4 | . . . . . 1 . 3 Reinforcement 3 | . . . . 1 1 . 1 Assault . | . . . . . . . . Garrison . | . . . . . . . . Intercept . | . . . . . . . . Searches Triggered . | . . . . . . . . Construction Impeded 1 | . . . . 1 . . . Haulers Reinforced . | . . . . . . . . Active Scanning Responses . | . . . . . . . . Cargo Convoy Interrupts . | . . . . . . . . Stealth | -11 -10 -10 -9 -8 -7 -6 -5 --------- Run | Yrd Mat Min Mat Mat Fac Fac Fac Distress Signals 4 | . . . 1 1 . . 2 Communications Jammed 1 | . . . . 1 . . . Distress Signals . | . . . . . . . . Times Spotted 86 | . 4 3 7 23 11 5 33 Peak Tracking Total 8 | . 2 3 4 8 3 4 8 Tactical Retreats 4 | . . . . . . . 4 Traps | -11 -10 -10 -9 -8 -7 -6 -5 ------- Run | Yrd Mat Min Mat Mat Fac Fac Fac Traps Triggered 1 | . . . . . 1 . . Indirectly . | . . . . . . . . Trap Hack Attempts . | . . . . . . . . Triggered . | . . . . . . . . Disarmed . | . . . . . . . . Reprogrammed . | . . . . . . . . Reused . | . . . . . . . . Traps Extracted . | . . . . . . . . Installed . | . . . . . . . . Triggered . | . . . . . . . . Machines | -11 -10 -10 -9 -8 -7 -6 -5 ---------- Run | Yrd Mat Min Mat Mat Fac Fac Fac Machines Disabled 15 | . . . 2 2 4 2 5 Max in Single Turn 1 | . . . 1 1 1 1 1 Machines Repaired . | . . . . . . . . Machines Dismantled . | . . . . . . . . Machines Sabotaged . | . . . . . . . . Overloaded Fab Kills . | . . . . . . . . Hacking | -11 -10 -10 -9 -8 -7 -6 -5 --------- Run | Yrd Mat Min Mat Mat Fac Fac Fac Machines Accessed 11 | . 2 . 3 . 3 . 3 Terminals 9 | . 2 . 3 . 2 . 2 Fabricators 1 | . . . . . 1 . . Repair Stations 1 | . . . . . . . 1 Recycling Units . | . . . . . . . . Scanalyzers . | . . . . . . . . Garrison Access . | . . . . . . . . Total Hacks 22 | . 3 . 8 . 5 . 6 Successful 9 | . 3 . 4 . 1 . 1 Failed 13 | . . . 4 . 4 . 5 Catastrophic 3 | . . . . . 3 . . Database Lockouts . | . . . . . . . . Manual 6 | . . . 3 . . . 3 Terminals 18 | . 3 . 8 . 4 . 3 Fabricators 1 | . . . . . 1 . . Repair Stations 3 | . . . . . . . 3 Recycling Units . | . . . . . . . . Scanalyzers . | . . . . . . . . Garrison Access . | . . . . . . . . Terminal Hacks 8 | . 3 . 4 . 1 . . Robot Analysis 2 | . 1 . . . 1 . . Locate Traps 1 | . . . 1 . . . . Hauler Manifests 2 | . 1 . 1 . . . . Zone Layout 3 | . 1 . 2 . . . . Fabricator Hacks . | . . . . . . . . Repair Station Hacks 1 | . . . . . . . 1 Scan Component 1 | . . . . . . . 1 Recycling Unit Hacks . | . . . . . . . . Scanalyzer . | . . . . . . . . Garrison Access Hacks . | . . . . . . . . Unauthorized Hacks . | . . . . . . . . Terminals . | . . . . . . . . Fabricators . | . . . . . . . . Repair Stations . | . . . . . . . . Recycling Units . | . . . . . . . . Scanalyzers . | . . . . . . . . Garrison Access . | . . . . . . . . Data Cores Recovered . | . . . . . . . . Used . | . . . . . . . . Hacking Detections 9 | . 2 . 1 . 3 . 3 Full Trace Events 2 | . . . . . . . 2 Feedback Events . | . . . . . . . . Feedback Blocked . | . . . . . . . . Robot Schematics Acquired . | . . . . . . . . Robots Built . | . . . . . . . . Authchips . | . . . . . . . . Time . | . . . . . . . . Total Robot Build Rating . | . . . . . . . . Part Schematics Acquired . | . . . . . . . . Parts Built . | . . . . . . . . Authchips . | . . . . . . . . Time . | . . . . . . . . Total Part Build Rating . | . . . . . . . . Part Studies Acquired . | . . . . . . . . Parts Repaired . | . . . . . . . . Time . | . . . . . . . . Parts Recycled . | . . . . . . . . Recycled Matter . | . . . . . . . . Retrieved Matter . | . . . . . . . . Retrieved Components . | . . . . . . . . Parts Scanalyzed . | . . . . . . . . Part Schematics Acquired . | . . . . . . . . Parts Damaged . | . . . . . . . . Bothacking | -11 -10 -10 -9 -8 -7 -6 -5 ------------ Run | Yrd Mat Min Mat Mat Fac Fac Fac Used RIF Installer . | . . . . . . . . Robots Hacked 2 | . 1 . . . . . 1 Non-combat 2 | . 1 . . . . . 1 Combat . | . . . . . . . . Robot Hacks Applied 2 | . 1 . . . . . 1 find_chute 1 | . . . . . . . 1 find_recycling 1 | . 1 . . . . . . Relay Couplers Released . | . . . . . . . . Fabnet Peak Effective % . | . . . . . . . . Robots Rewired . | . . . . . . . . Allies Hacked . | . . . . . . . . Hacks Repelled . | . . . . . . . . Allies | -11 -10 -10 -9 -8 -7 -6 -5 -------- Run | Yrd Mat Min Mat Mat Fac Fac Fac Total Allies 3 | . . 3 . . . . . Largest Group 3 | . . . 3 . . . . Highest-Rated Group 40 | . . . 40 . . . . Highest-Rated Ally 16 | . . . 16 . . . . Total Orders . | . . . . . . . . Ally Attacks 14 | . . . 14 . . . . Total Damage 156 | . . . 156 . . . . Kills . | . . . . . . . . Allies Corrupted . | . . . . . . . . Allies Melted . | . . . . . . . . Intel | -11 -10 -10 -9 -8 -7 -6 -5 ------- Run | Yrd Mat Min Mat Mat Fac Fac Fac Active Infowar (turns) 3735 | 72 289 178 292 664 795 222 1223 Optics 3124 | . . 120 292 661 795 222 1034 Sensors 2557 | . . . . 624 488 222 1223 Terrain 75 | 67 . 8 . . . . . Seismic 1196 | 5 289 178 292 220 . 84 128 Jamming 78 | . . . . 78 . . . Robot Analysis Total 2 | . 1 . . . 1 . . Derelict Logs Recovered . | . . . . . . . . Drone Launches . | . . . . . . . . Drone Recoveries . | . . . . . . . . Exploration | -11 -10 -10 -9 -8 -7 -6 -5 ------------- Run | Yrd Mat Min Mat Mat Fac Fac Fac Turns Passed 3954 | 137 293 178 292 664 795 222 1373 Spaces Moved 2493 | 73 159 112 175 402 523 149 900 Core 120 | 3 . . . . . . 117 Treads 25 | . . . . . . . 25 Legs 2235 | 70 159 112 175 402 523 149 645 Wheels 94 | . . . . . . . 94 Hover . | . . . . . . . . Flight 19 | . . . . . . . 19 Fastest Speed 35 | 50 120 120 120 120 120 122 35 Average Speed 120 | 117 120 120 120 122 121 122 118 Slowest Speed 270 | 120 120 120 120 125 123 122 270 Overloaded Moves . | . . . . . . . . Propulsion Burnouts . | . . . . . . . . Robots Hopped . | . . . . . . . . Potential Cave-ins . | . . . . . . . . Cave-ins Triggered . | . . . . . . . . Exploration Rate (%) 20 | 4 35 30 15 31 15 4 27 Regions Visited 7 Branch Regions 1 Pre-discovered Areas . | . . . . . . . . Known Exits Taken . | . . . . . . . . Unknown Exits Taken 7 | 1 1 1 1 1 1 1 . Scrap Searched . | . . . . . . . . Spaces Dug 37 | . . . . 2 9 3 23 Terrain Destroyed 111 | . . . 19 57 9 3 23 Melee 37 | . . . . 2 9 3 23 Projectile . | . . . . . . . . AOE 74 | . . . 19 55 . . . Terrain Rammed . | . . . . . . . . Walls Destroyed . | . . . . . . . . Machines Disabled . | . . . . . . . . Actions | -11 -10 -10 -9 -8 -7 -6 -5 --------- Run | Yrd Mat Min Mat Mat Fac Fac Fac Total 3050 | 97 243 135 221 515 613 170 1056 Wait 156 | . 62 6 15 31 20 3 19 Move 2486 | 72 158 111 174 401 522 148 900 Hop . | . . . . . . . . Pick Up 33 | 4 2 . 1 7 8 3 8 Fast Attach 47 | 8 3 . 2 14 5 . 15 Attach 19 | . 1 1 2 1 3 3 8 Detach 6 | 1 . 1 1 2 . . 1 Swap 31 | . 1 2 6 4 8 2 8 Drop 42 | . 3 2 . 19 11 1 6 Fire 71 | 12 8 10 19 22 . . . Melee 143 | . 5 . . 14 36 10 78 Ram 11 | . . . . . . . 11 Kick 5 | . . 2 1 . . . 2 Crush . | . . . . . . . . Escape Stasis . | . . . . . . . . Rewire . | . . . . . . . . Trap . | . . . . . . . . Miscellaneous . | . . . . . . . . Route ------- -11/Scrapyard -10/Materials (discovered 2 exits: *Mat / [*Min]) -10/Mines -9/Materials -8/Materials -7/Factory -6/Factory -5/Factory History --------- Turn | Location | Event 4 | -11/Scrapyard | Discovered new exit (range 15) 138 | -11/Scrapyard | Entered Materials 300 | -10/Materials | Build established: Mutant 324 | -10/Materials | Discovered new exit (range 11) 401 | -10/Materials | Discovered new exit (range 13) 431 | -10/Materials | Entered Mines 477 | -10/Mines | Met a Derelict bent on vengeance 582 | -10/Mines | Discovered new exit (range 17) 605 | -10/Mines | Assisted by bots powering up and referring to "LRC-V3" 609 | -10/Mines | Entered Materials 609 | -9/Materials | Accompanied by 3 allies 609 | -9/Materials | Evolved 2 slots: Propulsion x1, Utility x1 849 | -9/Materials | Discovered new exit (range 13) 901 | -9/Materials | Entered another Materials area 901 | -8/Materials | Evolved 2 slots: Utility x2 1259 | -8/Materials | Destroyed 9 combat bots 1377 | -8/Materials | Discovered new exit (range 19) 1565 | -8/Materials | Entered Factory 1565 | -7/Factory | Evolved 2 slots: Propulsion x1, Utility x1 1722 | -7/Factory | Build established: Gladiator 2208 | -7/Factory | Discovered new exit (range 15) 2360 | -7/Factory | Entered another Factory area 2360 | -6/Factory | Evolved 2 slots: Utility x2 2439 | -6/Factory | Discovered new exit (range 13) 2582 | -6/Factory | Entered another Factory area 2582 | -5/Factory | Evolved 2 slots: Propulsion x1, Utility x1 2790 | -5/Factory | Spotted B-75 Beast 2804 | -5/Factory | Destroyed B-75 Beast 3093 | -5/Factory | Lost 4 parts (3n1u) 3444 | -5/Factory | System corruption reached 10% 3496 | -5/Factory | Lost 6 parts (1n4u1w) 3838 | -5/Factory | Core integrity fell below 50% 3866 | -5/Factory | Released all parts (8) 3895 | -5/Factory | Lost 10 parts (2p4n3u1w) 3909 | -5/Factory | Core integrity fell below 20% 3955 | -5/Factory | Destroyed by S-27 Virus with Autogun Last Messages --------------- 03922_ Acquired Med. Treads. 03924_ ALERT: Potential suspicious activity detected, Programmers report to Factory Zone 9Q. 03926_ System corrupted: Substantial component data lost. 03926_ Slug penetrates Nuclear Reactor. 03928_ K-01 Serf cleans the Nuclear Reactor. 03940_ Penetrated by Slug. 03940_ EM Shield destroyed. 03941_ 82ELMB=JW6OK1GC#%HJH4&WX05%O#N|M/S%QBWW 03943_ Critical hit (Burn: +27). 03943_ Slug penetrates Nuclear Reactor. 03949_ Slammed into W-25 Informer. 03949_ S-27 Virus destroyed. 03951_ Penetrated by Slug. 03951_ K-01 Serf collects debris. 03953_ Imp. Shield Generator destroyed. 03954_ Slammed into K-01 Serf. 03955_ K-01 Serf collects debris. Map ----- +----------------------------------------------------+ | ?????????????????????????????????????????????????? | | ?????????????????????????????????????????????????? | | ?????????????????????????????????????????????????? | | ?????????????????????????????????????????????????? | | ?????????????????????????????????????????????????? | | ?????????????????????????????????????????????????? | | ?????????????????????????????????????????????????? | | ?????????????????????????????????????????????????? | | ?????????????????????????????????????????????????? | | ?????????????????????????????????????????????????? | | ??????????????????????? ???????????????????????? | | ??????????????????????? ???????????????????????? | | ??????????????????????? ???????????????????????? | | ??????????????????????? ???????????????????????? | | ??????????????????????? ???????????????????????? | | ??????????????????????? ???????#???????????????? | | ???????????????????????? ?????? ???????????????? | | ????????????????????????uA#????! ????????????????? | | ???????????????????????? #??? ????????????????? | | ???????????????????????? +??? ????????????????? | | ???????????????????????? #??""" "???????????????? | | ???????????????????????? #? """ "???????????????? | | ????????????????????????# # """?????????????????? | | ????????????????????????# # ???????????????????? | | ????????????????????????# k ????????????? ???????? | | ????????????????????????#@#??????????????/???????? | | ????????????????????????# #?????????????# #??????? | | ????????????????????????# #?????????????# #??????? | | ????????????????????????#s############+## #??????? | | ????????????????#########s #??????? | | ????????????????# + #??????? | | ????????????????# # """" ##?????? | | ????????????????#! |# k """""" ##????? | | ????????????????#######?#[ ""F "" ?????? | | ????????????##########??#w= """ """ #??#+#? | | ????????????# ####= """ #??# #? | | ????????????# """" / s """ #?## ## | | ????????????# """" # ### # | | ????????????# """" # ! + | | ????????????# """" + ## ### # | | ????????????# """" #######+##+## ##?## ## | | ????????????# """" # # #???# ## | | ????????????# """" # # #???# "# | | ????????????# # # #???# ## | | ????????????########## + #???# ## | | ?????????????????????# """ # #???# ## | | ?????????????????????# """"" # ##### ## | | ?????????????????????# """"" # ###### ## | | ?????????????????????############# #????# ## | | ?????????????????????????????????# #????# # | +----------------------------------------------------+ Best States ------------- Heat Dissipation 40 Energy Generation 18 Energy Capacity 300 Matter Stores 300 Matter Capacity 300 Sight Range 22 Robot Scan Range 15 Terrain Scan Range 16 Terrain Scan Density 10 Jamming Range 12 Armor Coverage 375 Resistance: EM 25 Core Shielding 30 Weapon Shielding 66 Evasion (%) 65 Targeting Accuracy 8 Melee Accuracy 6 Target Analysis 6 Recoil Reduction 1 Item Schematics ----------------- None Robot Schematics ------------------ None Fabricated ------------ Nothing Repaired ---------- Nothing Studied --------- None Alien Tech Used ----------------- None Achievements -------------- Ambidextrous Not Today, Chutes Challenges ------------ None Game ------ Seed SchematicScrapWand Manual? 0 Play Time 01:03:16 Cumulative 19.1 hours Start 2025.12.30 @ 01:12:03 End 2025.12.30 @ 02:23:48 Sessions 1 Manual Loads 0 Difficulty Rogue Special Mode None Game No. 27 Rogue 27 Adventurer 0 Explorer 0 Win Type - Total 0 Types 0/0/0/0/0/0/0/0/0/0 Lore% 13 Gallery% 25 Achievement% 17 Wizard Run 0 Options --------- Layout 1 ASCII 0 Keyboard 0 Movement Arrows Keybinds 1 Fullscreen 1 Font 24/Proggy Map View 50x35 Zoom Use 0% Tactical HUD 1 Map Filters NONE Filters NONE Steam 1 RUN: ff6fcc4b-1034-4045-81f8-9f19e9288ac5